Cogmind - Beta 14 @@@ ROGUE MODE // 2024.11.15 @ 04:44:53 Player: Fangrelle Result: Destroyed by L-31 Rogue with Katana Performance ------------- Evolutions (2) 1000 Regions Visited (6) 1200 Robots Destroyed (104) 520 Value Destroyed (2882) 2882 Prototype IDs (30) 600 Alien Tech Used (0) 0 Bonus (901) 901 TOTAL SCORE: 7103 Bonus ------- High Alert Combat Kills 525 Follower Combat Kills 76 Aligned with FarCom 300 Cogmind --------- Core Integrity 0/550 Matter 99/300 Energy 28/125 System Corruption 0% Temperature Warning (318) Movement Rolling (145) Ox3 Location -8/Storage Parts ------- > --- POWER (1) -------- Light Ion Engine > --- PROPULSION (4) --- Armored Huge Wheel Armored Huge Wheel > --- UTILITY (4) ------ Humpback Improved Light Armor Plating Dynamic Insulation System > --- WEAPON (2) ------- Plasma Cannon Enhanced Autogun > --- INVENTORY (35) --- Improved VTOL Module Improved VTOL Module Improved VTOL Module Flying Fortress v7 Improved Heat Sink Improved Heat Sink Improved Heat Sink Huge Storage Unit Humpback Advanced Weight Redist. System Improved Sensor Array Signal Interpreter System Restoration Module System Restoration Module System Restoration Module System Restoration Module Improved Trap Extractor (0/6) Plasma Cannon Plasma Cannon Plasma Cannon Gauss Rifle Gauss Rifle Assault Cannon Proton Missile Launcher Proton Missile Launcher Rocket Launcher Improved Datajack Plasma Cutter Axe Peak State ------------ > --- POWER ------------ Deuterium Engine > --- PROPULSION ------- Armored Huge Wheel Armored Huge Wheel > --- UTILITY ---------- Humpback Improved Light Armor Plating Improved Trap Extractor > --- WEAPON ----------- Enhanced Autogun Assault Cannon > --- INVENTORY -------- Improved VTOL Module Improved VTOL Module Improved VTOL Module Flying Fortress v7 Improved Heat Sink Improved Heat Sink Improved Heat Sink Huge Storage Unit Humpback Advanced Weight Redist. System Trap Scanner Improved Sensor Array Signal Interpreter Dynamic Insulation System System Restoration Module System Restoration Module System Restoration Module System Restoration Module Plasma Cannon Plasma Cannon Plasma Cannon Plasma Cannon Gauss Rifle Gauss Rifle Gauss Rifle Proton Missile Launcher Proton Missile Launcher Rocket Launcher Improved Datajack Plasma Cutter Axe [Rating: 48] Favorites ----------- Power Ion Engine Engine Ion Engine Power Core Light Nuclear Core Propulsion Light Treads Treads Light Treads Leg Makeshift Leg Wheel Armored Huge Wheel Flight Unit Flying Fortress v7 Utility Humpback Device Improved Heat Sink Storage Humpback Processor Transport Network Coupler Protection Light Armor Plating Weapon Light Assault Rifle Energy Gun Medium Laser Energy Cannon Plasma Cannon Ballistic Gun Light Assault Rifle Ballistic Cannon Assault Cannon Launcher Grenade Launcher Slashing Weapon Axe Special Melee Weapon Improved Datajack Build | -11 -10 -10 -10 -9 -8 -8 ------- Run | Yrd Mat Min Exi Min Mat Sto Slots Evolved 4 | . . . . . 4 . Power . | . . . . . . . Propulsion 2 | . . . . . 2 . Utility 2 | . . . . . 2 . Weapon . | . . . . . . . Parts Attached 114 | . 20 16 2 4 57 15 Power 11 | . 1 1 . 1 6 2 Engine 10 | . 1 1 . 1 5 2 Core 1 | . . . . . 1 . Reactor . | . . . . . . . Propulsion 26 | . 7 1 . 2 15 1 Treads 7 | . 6 . . . 1 . Leg 2 | . . . . 2 . . Wheel 12 | . . 1 . . 10 1 Hover . | . . . . . . . Flight 5 | . 1 . . . 4 . Utility 27 | . 3 2 2 . 13 7 Device 8 | . . . 1 . 3 4 Storage 7 | . 1 1 1 . 3 1 Processor 3 | . 1 1 . . 1 . Hackware . | . . . . . . . Protection 9 | . 1 . . . 6 2 Artifact . | . . . . . . . Weapon 50 | . 9 12 . 1 23 5 Energy Gun 10 | . 3 2 . . 5 . Energy Cannon 4 | . 2 1 . . . 1 Ballistic Gun 23 | . 4 6 . 1 11 1 Ballistic Cannon 3 | . . . . . 2 1 Launcher 6 | . . 3 . . 3 . Special Weapon . | . . . . . . . Impact Weapon . | . . . . . . . Slashing Weapon 1 | . . . . . . 1 Piercing Weapon . | . . . . . . . Special Melee Weapon 3 | . . . . . 2 1 Unidentified Prototypes 5 | . 1 . . . 4 . Parts Lost 23 | . 1 5 . . 16 1 Power 5 | . . 1 . . 3 1 Propulsion 7 | . 1 1 . . 5 . Utility 4 | . . 1 . . 3 . Weapon 7 | . . 2 . . 5 . Highest Loss Streak 6 | . 1 2 . . 6 1 To Critical Strikes . | . . . . . . . Average Slot Usage (%) 78 | . 99 72 86 85 64 70 Engine 10 | . 14 13 14 14 3 8 Core 1 | . . . . . 3 . Treads 11 | . 26 14 14 7 . . Leg 1 | . . . . 14 2 . Wheel 7 | . . . 14 7 13 17 Device 2 | . . . 1 . 6 9 Storage 12 | . 14 14 13 14 9 9 Processor 2 | . 6 . . . 2 . Protection 3 | . 6 . . . 4 8 Energy Gun 3 | . 14 . . . 1 . Ballistic Gun 19 | . 13 26 28 28 14 10 Peak Build Rating 48 | 6 11 10 16 24 46 48 Average Rating 19 | 6 8 7 12 19 33 46 On Entrance 15 | 6 6 9 10 15 24 41 Naked Turns . | . . . . . . . Heaviest Build 224 | 12 53 89 205 206 221 224 Greatest Support 56 | 20 40 40 16 40 56 56 Greatest Overweight (x) 67 | . 2 5 12 12 67 3 Average Overweight (x) 4 | . 1 3 10 9 4 3 Largest Inventory Capacity 35 | 8 20 25 35 35 35 35 Average Capacity 28 | 8 19 23 33 35 35 35 Most Carried 35 | 6 17 25 35 35 35 35 Average Carried 25 | 6 11 20 29 34 32 33 Final Capacity 35 | 8 20 25 35 35 35 35 Final Carried 35 | 6 13 23 35 35 35 33 Class Distribution -------------------- 50% | Hauler-Mutant 41% | Mutant 6% | Scavenger-Mutant Dominant Class ---------------- Mutant | -10/Materials Mutant | -10/Mines Hauler-Mutant | -10/Exiles Hauler-Mutant | -9/Mines Hauler-Mutant | -8/Materials Hauler-Mutant | -8/Storage Resources | -11 -10 -10 -10 -9 -8 -8 ----------- Run | Yrd Mat Min Exi Min Mat Sto Matter Collected 2813 | 145 310 279 . 110 1801 168 Remotely . | . . . . . . . Salvage Created 3279 | . 461 208 . 10 2304 296 Parts 217 | . 29 25 . 1 145 17 Haulers Intercepted 4 | . 1 . . . 3 . Recyclers Shooed 3 | . 2 . . . 1 . Parts Field Recycled . | . . . . . . . Retrieved Matter . | . . . . . . . Parts Self-Destructed . | . . . . . . . Prevented . | . . . . . . . Kills | -11 -10 -10 -10 -9 -8 -8 ------- Run | Yrd Mat Min Exi Min Mat Sto Combat Hostiles Destroyed 81 | . 12 15 . 1 44 9 Melee 2 | . . . . . . 2 Guns 51 | . 11 5 . 1 29 5 Cannons 10 | . 1 . . . 7 2 AOE 18 | . . 10 . . 8 . Classes Destroyed 16 | . 5 2 . . 9 . Worker 4 | . . . . . 4 . Builder 8 | . 1 . . . 7 . Tunneler 2 | . . 2 . . . . Hauler 4 | . 1 . . . 3 . Recycler 2 | . . . . . 2 . Operator 1 | . . . . . 1 . Watcher 7 | . 3 . . . 3 1 Swarmer 26 | . 6 9 . 1 5 5 Grunt 39 | . 6 4 . . 26 3 Brawler 2 | . . . . . 2 . Duelist 4 | . . . . . 3 1 Protector 1 | . . . . . 1 . Sentry 5 | . . . . . 5 . Hunter 1 | . . . . . 1 . Heavy 1 | . . . . . 1 . Assembled 2 | . . 2 . . . . Best Kill Streak 15 | . 3 6 . 1 15 4 Combat Bots Only 13 | . 3 4 . 1 13 4 Max Kills in Single Turn 4 | . 2 3 . 1 4 1 Gunslinging . | . . . . . . . Exploded 3 | . . 3 . . 2 . Melee 1 | . . . . . . 1 Uniques/NPCs Destroyed . | . . . . . . . Combat | -11 -10 -10 -10 -9 -8 -8 -------- Run | Yrd Mat Min Exi Min Mat Sto Hostile Shots Fired 450 | . 75 48 . 2 277 48 Missed 121 | . 19 12 . . 79 11 Damage Taken 5414 | . 558 486 . 19 3652 699 Core 770 | . 72 148 . . 466 84 Absorbed by Shields . | . . . . . . . Regen/Repaired (Parts) 198 | . . . . . . 198 Core Remaining (%) 56 | 100 . . . 12 . . Volleys Fired 350 | . 69 27 . 2 208 44 Largest 2 | . 2 2 . 2 2 2 Hottest 136 | . 136 80 . 40 77 105 Shots Fired 643 | . 136 40 . 4 400 63 Gun 553 | . 128 28 . 4 343 50 Cannon 65 | . 8 . . . 44 13 Launcher 25 | . . 12 . . 13 . Special . | . . . . . . . Kinetic 500 | . 65 22 . 4 359 50 Thermal 95 | . 71 2 . . 9 13 Explosive 25 | . . 12 . . 13 . Electromagnetic 23 | . . 4 . . 19 . Robot Hit Streak 10 | . 9 5 . 3 10 5 Robot Miss Streak 7 | . 7 2 . 1 5 3 Penetration Max 1 | . . . . . 1 . Secondary Targets 6 | . 1 1 . . 4 . Max Gunslinging Chain 1 | . 1 1 . . 1 . Shots Hit Robots 383 | . 80 19 . 3 239 42 Core Hits 194 | . 25 26 . 1 125 17 Critical Kills 5 | . . . . . 5 . Critical Parts Destroyed 2 | . . . . . 1 1 Critical Strikes 9 | . 1 . . . 7 1 Burn 2 | . 1 . . . 1 . Destroy 7 | . . . . . 6 1 Melee Attacks 7 | . . . . . . 7 Impact . | . . . . . . . Slashing 7 | . . . . . . 7 Piercing . | . . . . . . . Sneak Attacks . | . . . . . . . Combat Hostiles . | . . . . . . . Follow-up Attacks . | . . . . . . . Damage Inflicted 7718 | . 1027 794 . 23 5041 833 Guns 4902 | . 925 153 . 23 3297 504 Cannons 906 | . 102 . . . 624 180 Explosions 1761 | . . 641 . . 1120 . Melee 149 | . . . . . . 149 Ramming . | . . . . . . . Kinetic 4697 | . 463 120 . 23 3587 504 Thermal 907 | . 564 13 . . 150 180 Explosive 1761 | . . 641 . . 1120 . Electromagnetic 204 | . . 20 . . 184 . Impact . | . . . . . . . Slashing 149 | . . . . . . 149 Piercing . | . . . . . . . Highest Corruption . | . . . . . . . Average Corruption . | . . . . . . . Corruption Purged . | . . . . . . . Corruption Blocked . | . . . . . . . Overload Shots . | . . . . . . . Overflow Damage 45 | . . 27 . . 18 . Projectiles 8 | . . . . . 8 . Explosions 37 | . . 27 . . 10 . Melee . | . . . . . . . Knockbacks 4 | . . . . . 4 . Impact . | . . . . . . . Kinetic 3 | . . . . . 3 . Secondary 1 | . . . . . 1 . Self-Inflicted Damage 280 | . . 116 . . 164 . Shots 9 | . . 5 . . 4 . Rammed . | . . . . . . . Targets Rammed . | . . . . . . . Kicked . | . . . . . . . Crushed . | . . . . . . . Highest Temperature 330 | . 330 36 . . 188 318 Average Temperature 70 | . 83 18 . . 49 70 Received Heat Transfer 1815 | . 201 12 . . 1467 135 Siege Activations . | . . . . . . . Robots Corrupted . | . . . . . . . Combat Hostiles . | . . . . . . . Parts Fried . | . . . . . . . Impact Corruptions . | . . . . . . . Robots Melted . | . . . . . . . Combat Hostiles . | . . . . . . . Parts Melted . | . . . . . . . Heat Transferred 2267 | . 1473 37 . . 407 350 Parts Sabotaged . | . . . . . . . Parts Stolen . | . . . . . . . Parts Stripped . | . . . . . . . Power Chain Reactions . | . . . . . . . Alert | -11 -10 -10 -10 -9 -8 -8 ------- Run | Yrd Mat Min Exi Min Mat Sto Peak Influence 1177 | . 218 160 . 57 1177 811 Initial 486 | . . 30 . . . 486 Average 201 | . 77 42 . 24 373 503 Maximum Alert Level 4 | . 1 . . . 4 3 Low Security (%) 72 | 100 96 100 . 100 46 . Level 1 5 | . 3 . . . 12 9 Level 2 13 | . . . . . 19 82 Level 3 4 | . . . . . 10 8 Level 4 3 | . . . . . 11 . Level 5 . | . . . . . . . High Security . | . . . . . . . Max Security . | . . . . . . . Squads Dispatched 15 | . 1 . . . 10 4 Investigation 5 | . 1 . . . 3 1 Extermination . | . . . . . . . Reinforcement 2 | . . . . . 2 . Assault 5 | . . . . . 4 1 Garrison 3 | . . . . . 1 2 Intercept . | . . . . . . . Searches Triggered . | . . . . . . . Construction Impeded . | . . . . . . . Haulers Reinforced . | . . . . . . . Active Scanning Responses . | . . . . . . . Cargo Convoy Interrupts . | . . . . . . . Stealth | -11 -10 -10 -10 -9 -8 -8 --------- Run | Yrd Mat Min Exi Min Mat Sto Distress Signals 6 | . 2 . . . 2 2 Communications Jammed . | . . . . . . . Distress Signals . | . . . . . . . Times Spotted 129 | . 23 15 . 1 68 22 Peak Tracking Total 7 | . 4 3 . . 7 6 Tactical Retreats 12 | . 3 . . . 5 4 Traps | -11 -10 -10 -10 -9 -8 -8 ------- Run | Yrd Mat Min Exi Min Mat Sto Traps Triggered 4 | . 2 . . . 1 1 Indirectly . | . . . . . . . Trap Hack Attempts 118 | . . . . . 81 37 Triggered . | . . . . . . . Disarmed 1 | . . . . . 1 . Reprogrammed 8 | . . . . . 6 2 Reused 5 | . . . . . 3 2 Traps Extracted 2 | . . . . . . 2 Installed 7 | . . . . . 5 2 Triggered 5 | . . . . . 3 2 Most Traps Carried 5 | . . 5 5 5 5 1 Machines | -11 -10 -10 -10 -9 -8 -8 ---------- Run | Yrd Mat Min Exi Min Mat Sto Machines Disabled 8 | . . 1 . . 5 2 Max in Single Turn 2 | . . 1 . . 2 1 Garrison Access 1 | . . . . . . 1 Machines Repaired . | . . . . . . . Machines Dismantled . | . . . . . . . Machines Sabotaged . | . . . . . . . Overloaded Fab Kills . | . . . . . . . Hacking | -11 -10 -10 -10 -9 -8 -8 --------- Run | Yrd Mat Min Exi Min Mat Sto Machines Accessed 32 | . 10 1 3 1 9 8 Terminals 18 | . 8 . . 1 4 5 Fabricators . | . . . . . . . Repair Stations 2 | . . . . . 1 1 Recycling Units 5 | . 2 . . . 2 1 Scanalyzers 2 | . . . . . 2 . Garrison Access 1 | . . . . . . 1 Total Hacks 115 | . 40 1 11 4 30 29 Successful 78 | . 30 1 11 2 19 15 Failed 37 | . 10 . . 2 11 14 Catastrophic 4 | . 1 . . 1 1 1 Database Lockouts . | . . . . . . . Manual 69 | . 32 . 1 . 19 17 Terminals 68 | . 31 . . 4 16 17 Fabricators . | . . . . . . . Repair Stations 9 | . . . . . 3 6 Recycling Units 18 | . 9 . . . 6 3 Scanalyzers 5 | . . . . . 5 . Garrison Access 3 | . . . . . . 3 Terminal Hacks 21 | . 5 1 11 2 1 1 Record 10 | . . . 10 . . . Robot Analysis 3 | . 3 . . . . . Prototype ID Bank 1 | . 1 . . . . . Open Door 2 | . . 1 . . . 1 Level Access Points 1 | . . . . 1 . . Branch Access Points 1 | . . . . . 1 . Terminal Index 1 | . 1 . . . . . Zone Layout 1 | . . . . 1 . . Derelict Proto ID Bank 1 | . . . 1 . . . Fabricator Hacks . | . . . . . . . Repair Station Hacks 5 | . . . . . 1 4 Scan Component 3 | . . . . . 1 2 Repair 2 | . . . . . . 2 Recycling Unit Hacks 9 | . 7 . . . 2 . Report Inventory 3 | . 2 . . . 1 . Retrieve Matter 3 | . 3 . . . . . Retrieve Components 3 | . 2 . . . 1 . Scanalyzer 3 | . . . . . 3 . Insert Component 2 | . . . . . 2 . Analyze 1 | . . . . . 1 . Garrison Access Hacks . | . . . . . . . Unauthorized Hacks 40 | . 18 . . . 12 10 Terminals 37 | . 17 . . . 10 10 Track 1 | . . . . . . 1 Assimilate 7 | . 3 . . . 2 2 Botnet 15 | . 7 . . . 4 4 Disrupt 1 | . . . . . . 1 Operators 4 | . 2 . . . 1 1 Skim 9 | . 5 . . . 3 1 Fabricators . | . . . . . . . Repair Stations . | . . . . . . . Recycling Units 3 | . 1 . . . 2 . Tunnel 3 | . 1 . . . 2 . Scanalyzers . | . . . . . . . Garrison Access . | . . . . . . . Data Cores Recovered . | . . . . . . . Used . | . . . . . . . Hacking Detections 27 | . 10 . . 1 9 7 Full Trace Events 7 | . 3 . . . 2 2 Feedback Events . | . . . . . . . Feedback Blocked . | . . . . . . . Robot Schematics Acquired . | . . . . . . . Robots Built . | . . . . . . . Authchips . | . . . . . . . Time . | . . . . . . . Total Robot Build Rating . | . . . . . . . Part Schematics Acquired 1 | . . . . . 1 . Parts Built . | . . . . . . . Authchips . | . . . . . . . Time . | . . . . . . . Total Part Build Rating . | . . . . . . . Parts Repaired 2 | . . . . . . 2 Time 105 | . . . . . . 105 Parts Recycled . | . . . . . . . Recycled Matter . | . . . . . . . Retrieved Matter 71 | . 71 . . . . . Retrieved Components 23 | . 13 . . . 10 . Parts Scanalyzed 2 | . . . . . 2 . Part Schematics Acquired 1 | . . . . . 1 . Parts Damaged . | . . . . . . . Bothacking | -11 -10 -10 -10 -9 -8 -8 ------------ Run | Yrd Mat Min Exi Min Mat Sto Used RIF Installer . | . . . . . . . Robots Hacked . | . . . . . . . Non-combat . | . . . . . . . Combat . | . . . . . . . Robot Hacks Applied . | . . . . . . . Relay Couplers Released 1 | . . . . . . 1 Machine Destruction 1 | . . . . . . 1 Fabnet Peak Effective % . | . . . . . . . Robots Rewired . | . . . . . . . Allies Hacked . | . . . . . . . Hacks Repelled . | . . . . . . . Allies | -11 -10 -10 -10 -9 -8 -8 -------- Run | Yrd Mat Min Exi Min Mat Sto Total Allies 2 | . . . . 2 . . Largest Group 2 | . . . . 2 1 . Highest-Rated Group 49 | . . . . 49 31 . Highest-Rated Ally 31 | . . . . 31 31 . Total Orders . | . . . . . . . Ally Attacks 26 | . . . . 3 23 . Total Damage 307 | . . . . 36 271 . Kills 4 | . . . . 2 2 . Allies Corrupted . | . . . . . . . Allies Melted . | . . . . . . . Intel | -11 -10 -10 -10 -9 -8 -8 ------- Run | Yrd Mat Min Exi Min Mat Sto Robot Analysis Total 3 | . 3 . . . . . Derelict Logs Recovered 1 | . . 1 . . . . Drone Launches . | . . . . . . . Drone Recoveries . | . . . . . . . Exploration | -11 -10 -10 -10 -9 -8 -8 ------------- Run | Yrd Mat Min Exi Min Mat Sto Turns Passed 10879 | 2 2174 2711 1535 460 3249 748 Spaces Moved 3327 | 2 762 620 584 122 1020 217 Core 16 | . . . . . 16 . Treads 1291 | . 735 556 . . . . Legs 139 | 2 27 . . 45 65 . Wheels 1874 | . . 64 584 77 932 217 Hover . | . . . . . . . Flight 7 | . . . . . 7 . Fastest Speed 100 | 120 120 175 100 280 145 145 Average Speed 260 | 120 239 366 255 357 229 145 Slowest Speed 3400 | 120 320 480 280 490 3400 145 Overloaded Moves . | . . . . . . . Propulsion Burnouts . | . . . . . . . Robots Hopped . | . . . . . . . Cave-ins Triggered . | . . . . . . . Exploration Rate (%) 56 | 2 96 98 90 22 60 26 Regions Visited 6 Branch Regions 4 Pre-discovered Areas 6 | . 1 2 1 . 2 . Known Exits Taken 3 | . . 1 . 1 1 . Unknown Exits Taken 3 | 1 1 . 1 . . . Scrap Searched 2 | . . 2 . . . . Spaces Dug 21 | . . 21 . . . . Terrain Destroyed 211 | . . 93 . . 112 6 Melee . | . . . . . . . Projectile 19 | . . . . . 14 5 AOE 191 | . . 93 . . 98 . Terrain Rammed . | . . . . . . . Walls Destroyed . | . . . . . . . Machines Disabled . | . . . . . . . Actions | -11 -10 -10 -10 -9 -8 -8 --------- Run | Yrd Mat Min Exi Min Mat Sto Total 4947 | 1 977 1021 631 148 1585 584 Wait 821 | . 94 340 . 10 121 256 Move 3321 | 1 761 619 583 121 1019 217 Hop . | . . . . . . . Pick Up 119 | . 19 16 35 5 42 2 Fast Attach 28 | . 6 . 1 1 15 5 Attach 44 | . 5 6 1 2 27 3 Detach 14 | . 1 1 . . 10 2 Swap 42 | . 9 10 . 1 15 7 Drop 76 | . 13 2 11 6 42 2 Fire 350 | . 69 27 . 2 208 44 Melee 7 | . . . . . . 7 Ram . | . . . . . . . Kick . | . . . . . . . Crush . | . . . . . . . Escape Stasis . | . . . . . . . Rewire . | . . . . . . . Trap 125 | . . . . . 86 39 Miscellaneous . | . . . . . . . Route ------- -11/Scrapyard -10/Materials (discovered 4 exits: [*Mat x3] / *Min) -10/Mines (discovered 3 exits: [*Mat x2] / *Exi) -10/Exiles -9/Mines (discovered 2 exits: *Mat x2) -8/Materials (discovered 4 exits: [*Fac x3] / *Sto) -8/Storage History --------- Turn | Location | Event 1 | -11/Scrapyard | Discovered new exit (range 1) 3 | -11/Scrapyard | Entered Materials 314 | -10/Materials | Build established: Mutant 426 | -10/Materials | Discovered new exit (range 15) 844 | -10/Materials | Discovered new exit (range 16) 1119 | -10/Materials | Discovered new exit (range 8) 1723 | -10/Materials | Discovered new exit (range 7) 2177 | -10/Materials | Entered Mines 2323 | -10/Mines | Discovered new exit (range 5) 2331 | -10/Mines | Core integrity fell below 50% 2534 | -10/Mines | Learned location of Storage (-8) 2572 | -10/Mines | Deemed a non-threat by the Exiles lab entrance 2656 | -10/Mines | Received a Rocket Launcher from a helpful Derelict 2868 | -10/Mines | Learned location of Zion (-7) 3067 | -10/Mines | Found a hidden stash of uninstalled traps 3896 | -10/Mines | Discovered new exit (range 13) 4083 | -10/Mines | Excavation squad dispatched 4083 | -10/Mines | A large section of the Mines collapsed 4333 | -10/Mines | Excavation squad dispatched 4459 | -10/Mines | Met a Derelict who couldn't figure out how to use a Trap Extractor 4506 | -10/Mines | Core integrity fell below 20% 4805 | -10/Mines | Build established: Scavenger-Mutant 4881 | -10/Mines | Discovered new exit (range 5) 4886 | -10/Mines | Identified exit to Exiles 4888 | -10/Mines | Entered Exiles 4941 | -10/Exiles | Met 8R-AWN 5026 | -10/Exiles | Met EX-HEX 5282 | -10/Exiles | Met EX-DEC 5336 | -10/Exiles | Visited The Gauntlet 5400 | -10/Exiles | Build established: Hauler-Mutant 5968 | -10/Exiles | Met EX-BIN 6018 | -10/Exiles | Aligned with FarCom system 6021 | -10/Exiles | Given EX-Vault access code 6085 | -10/Exiles | Opened EX-Vault 6103 | -10/Exiles | Found Flying Fortress v7 6210 | -10/Exiles | Warned to stay clear of 0b10 Research branches 6389 | -10/Exiles | Discovered new exit (range 14) 6423 | -10/Exiles | Left Exiles lab with Flying Fortress v7 6423 | -10/Exiles | Entered Mines 6424 | -9/Mines | Assembled infested the area 6847 | -9/Mines | Discovered new exit (range 3) 6868 | -9/Mines | Identified exit to Materials 6883 | -9/Mines | Entered Materials 6883 | -8/Materials | Accompanied by 1 ally 6883 | -8/Materials | Evolved 4 slots: Propulsion x2, Utility x2 6888 | -8/Materials | Led the pair of lost Derelicts to an unsafe place 7316 | -8/Materials | Lost 6 parts (2p3n1w) 8051 | -8/Materials | Core integrity fell below 50% 8114 | -8/Materials | Discovered new exit (range 11) 8402 | -8/Materials | Discovered new exit (range 14) 8710 | -8/Materials | Garrison activated, responded to threat 9259 | -8/Materials | Discovered new exit (range 4) 9683 | -8/Materials | First assault squad dispatched 9699 | -8/Materials | Lost 5 parts (1p2n1u1w) 9773 | -8/Materials | Core integrity fell below 20% 9798 | -8/Materials | Destroyed 13 combat bots 9798 | -8/Materials | Discovered new exit (range 15) 9821 | -8/Materials | Identified exit to Storage 10132 | -8/Materials | Entered Storage 10278 | -8/Storage | Repaired Corrupted Imp. Trap Extractor 10324 | -8/Storage | Repaired Arm. Huge Wheel 10717 | -8/Storage | Garrison activated, responded to threat 10880 | -8/Storage | Destroyed by L-31 Rogue with Katana Last Messages --------------- Testing... Disruption routine running. >>Trojan(Track) Trojan loaded successfully. Testing... Tracking enabled and active. >>Trojan(Skim) Trojan loaded successfully. Testing... Terminal linked with 0 systems. Please expand to 4 more systems! 10849_ C-30 ARC bursts open, deploying its payload. 10849_ G-50 Soldier unfolds itself. 10849_ L-31 Rogue unfolds itself. 10849_ G-47 Trooper unfolds itself. 10849_ B-36 Bruiser unfolds itself. 10849_ M-28 Smith unfolds itself. 10849_ K-01 Serf collects debris. 10863_ Acquired Lgt. Ion Engine. 10880_ K-01 Serf collects debris. Map ----- +----------------------------------------------------+ | ?# ! #???????????????????????????????????? | | ?#! #???????????????????????????????????? | | ?# #???????????????????????????????????? | | ?# ###############?????????????????????? | | ?# # = #?????????????????????? | | ?# # ! #?????????????????????? | | ?# *!#% ! #?????????????????????? | | ?# !%+[![ ! #?????????????????????? | | ?# **#%= #?????????????????????? | | ?# # [ #?????????????????????? | | ?# ###########+###?????????????????????? | | ?# #?????????# #???????????????????????? | | ?# #?????????#k#???????????????????????? | | ?# #?????????# #???????????????????????? | | ?# #?????????# ####?????? #???#????????? | | ?# #?????????# +????? ??? ##???????? | | ?# #????######/## #???? ??? T#???????? | | ?# #????# g # #####;### #????????? | | ?# #????# !!! # #????????? | | ?# +????# !!! # #????????? | | ?# #????# !! # #####????? | | ?# ?????# # k "%" ???? | | ?##+#?????# umk u ???? | | ??????????# =w#u ^ ???? | | ??????????# ""*!glg####T######/######????? | | ??????????# "G b@#????##????????????????? | | ??????????# """ ##?????????????????????? | | ??????????# ##?????????????????????? | | ??????????#########??????????????????????? | | ?????????????????????????????????????????? | | ?????????????????????????????????????????? | | ?????????????????????????????????????????? | | ?????????????????????????????????????????? | | ???????????????????????????????Y?????????? | | ?????????????????????????????????????????? | | ?????????????????????????????????????????? | | ?????????????????????????????????????????? | | | | | | | | | | | | | | | | | | | | | | | | | | | +----------------------------------------------------+ Best States ------------- Heat Dissipation 45 Energy Generation 15 Energy Capacity 275 Matter Stores 300 Matter Capacity 300 Sight Range 16 Terrain Scan Range 16 Terrain Scan Density 10 EM Shielding 2 Armor Coverage 150 Evasion (%) 50 Targeting Accuracy 5 Recoil Reduction 2 Trap Extractor Capacity 6 Item Schematics ----------------- Enh. Autogun | -8/Materials | Scanalyzed Robot Schematics ------------------ None Fabricated ------------ Nothing Alien Tech Used ----------------- None Achievements -------------- None Challenges ------------ None Game ------ Seed ForceDecoderArachnoskeleton Manual? 0 Play Time 00:55:01 Cumulative 77.6 hours Start 2024.11.15 @ 03:45:13 End 2024.11.15 @ 04:44:53 Sessions 1 Manual Loads 0 Difficulty Rogue Special Mode None Game No. 133 Rogue 133 Adventurer 0 Explorer 0 Win Type - Total 0 Types 0/0/0/0/0/0/0/0/0 Lore% 41 Gallery% 35 Achievement% 34 Wizard Run 0 Options --------- Layout 0 ASCII 0 Keyboard 0 Movement Mouse Keybinds 0 Fullscreen 1 Font 24/Smallcaps Map View 91x25 Zoom Use 92% Tactical HUD 1 Map Filters NONE Filters NONE Steam 1 RUN: 425c7d0e-a98e-4f6a-9235-f1ecaac29779